lending/lending_fUSD_20240509
["ID","MTS","AMOUNT","RATE_DAILY","PERIOD"]
[326676417,1715214241678,-745.09768487,0.00010115,2]
[326676418,1715214251019,266.51338712,0.00010015,2]
[326676419,1715214258412,-2311.948257,0.00010115,2]
[326676420,1715214286719,-155.0,0.0001022,2]
[326676421,1715214286749,-158.5064266,0.00010221,2]
[326676422,1715214287543,-667.76048764,0.00010592,2]
[326676423,1715214287781,-150.0,0.00010592,2]
[326676424,1715214303549,283.1592264,0.00010592,2]
[326676425,1715214331353,-2756.98175936,0.00010593,2]
[326676426,1715214638420,-3433.671851,0.00012,2]
[326676429,1715214638428,-158.50642657,0.0001229,2]
[326676431,1715214638436,-150.0,0.00012897,2]
[326676433,1715214638445,-188.70189088,0.00013,2]
[326676435,1715214638454,-158.50642657,0.00014359,2]
[326676437,1715214638462,-8165.21159202,0.00014359,2]
[326676440,1715214638473,-431.18512968,0.00014359,2]
[326676443,1715214638483,-2049.42770371,0.00014359,2]
[326676445,1715214638493,-1552.21826563,0.00014359,2]
[326676447,1715214638502,-1272.24,0.00014359,2]
[326676449,1715214638512,-700.0,0.00014359,2]
[326676461,1715214642016,-23177.95438514,0.00014359,2]
[326676466,1715214642027,-4213.84844279,0.00015,2]
[326676469,1715214642037,-7337.66,0.00015852,2]
[326676473,1715214642046,-158.50642657,0.00016427,2]
[326676477,1715214642056,-633.68,0.00017143,2]
[326676480,1715214642067,-7290.62,0.00017724,2]
[326676483,1715214642080,-1000.0,0.00018175,2]
[326676485,1715214642094,-158.50642657,0.00018496,2]
[326676486,1715214642107,-250.0,0.00018619,2]
[326676489,1715214642117,-500.0,0.0001867,2]
[326676490,1715214642127,-200.0,0.00018681,2]
[326676493,1715214642137,-21424.19,0.00018757,2]
[326676495,1715214642148,-530.66,0.00018977,2]
[326676496,1715214642158,-267.01,0.00018977,2]
[326676499,1715214642167,-5000.0,0.00019,2]
[326676500,1715214642177,-153.81,0.00019178,2]
[326676503,1715214642186,-228.42,0.00019178,2]
[326676504,1715214642195,-3876.54489169,0.000192,2]
[326676507,1715214642205,-228.11079,0.0002,2]
[326676509,1715214642215,-155.0,0.0002,2]
[326676511,1715214642224,-6231.35798858,0.0002,2]
[326676513,1715214642233,-151.57194683,0.00020048,2]
[326676515,1715214642244,-159.78197644,0.00020049,2]
[326676517,1715214642253,-154.5536726,0.0002008,2]
[326676519,1715214642262,-235.83727051,0.00020326,2]
[326676521,1715214642271,-156.5214017,0.00020327,2]
[326676523,1715214642280,-235.83727051,0.00020344,2]
[326676525,1715214642290,-210.3435,0.00020386,2]
[326676527,1715214642299,-1748.4922,0.00020386,2]
[326676529,1715214642308,-1000.0,0.00020447,2]
[326676531,1715214642317,-578.0799,0.00020465,2]
[326676533,1715214642326,-35198.99640447,0.00020465,2]
[326676545,1715214642434,-1513.607485,0.00020465,2]
[326676547,1715214642446,-12913.09180764,0.00020465,2]
[326676550,1715214642457,-781.95430748,0.00020465,2]
[326676552,1715214642468,-708.8192111,0.00020465,2]
[326676554,1715214642484,-285.56749911,0.00020465,2]
[326676557,1715214642495,-565.79311322,0.00020465,2]
[326676559,1715214642509,-12205.67296353,0.00020465,2]
[326676561,1715214642520,-2500.0,0.00020465,2]
[326676563,1715214642532,-3094.32703647,0.00020465,2]
[326676577,1715214645201,-489.7517793,0.00020465,2]
[326676580,1715214645213,-3013.6632838,0.00020465,2]
[326676582,1715214645224,-913.57159141,0.00020465,2]
[326676584,1715214645235,-412.62149716,0.00020465,2]
[326676704,1715214649799,-1230.2556,0.00020465,2]
[326676726,1715214652932,-2667.9455,0.00020465,2]
[326676727,1715214652941,-6296.85705875,0.00020465,2]
[326676728,1715214652950,-1447.99770089,0.00020465,2]
[326676729,1715214652962,-3643.18059081,0.00020465,2]
[326676730,1715214652971,-1580.384,0.00020565,2]
[326676731,1715214652980,-25841.98148008,0.00020565,2]
[326676737,1715215596939,60000.0,0.00025,120]
[326676743,1715215836371,-484.32,0.00010491,2]
[326676746,1715215840131,-515.68,0.00010491,2]
[326676749,1715215840140,-169.37424735,0.00010492,2]
[326676758,1715215840807,-1183.43292604,0.00010492,2]
[326676760,1715215840821,-1423.68514835,0.00010492,2]
[326676762,1715215840836,-517.9614323,0.00010492,2]
[326676774,1715215841337,-803.1102161,0.00010492,2]
[326676777,1715215841351,-665.08469825,0.00010492,2]
[326676779,1715215841364,-576.32490571,0.00010492,2]
[326676781,1715215841377,-4318.56012524,0.00010492,2]
[326676784,1715215841398,-1756.89240066,0.00010492,2]
[326676785,1715215841409,-400.0,0.000126,4]
[326676786,1715215841419,-800.0,0.000127,4]
[326676787,1715215841431,-1300.0,0.000128,4]
[326676788,1715215841440,-177.10224627,0.000129,2]
[326676789,1715215841450,-2279.5534,0.000129,2]
[326676790,1715215841460,-529.91509932,0.000129,2]
[326676791,1715215841474,-2806.0339604,0.000129,2]
[326676792,1715215841483,-1700.0,0.000129,4]
[326676793,1715215841492,-224.87688924,0.000129,2]
[326676794,1715215841502,-354.71717929,0.000129,2]
[326676795,1715215841512,-315.59970379,0.000129,2]
[326676796,1715215841522,-1149.02686381,0.000129,2]
[326676797,1715215841531,-1270.93207056,0.00012998,2]
[326676798,1715215841541,-198.16263109,0.00012999,2]
[326676799,1715215841550,-59606.68513494,0.00013,2]
[326676800,1715215841562,-3913.38875614,0.00013,2]
[326676801,1715215841573,-495.8025,0.00013,2]
[326676802,1715215841584,-6486.03214677,0.00013,2]
[326676803,1715215841597,-15067.000015,0.00013,2]
[326676804,1715215841608,-11997.21245091,0.00013,2]
[326676820,1715215845092,-7402.85616,0.00013,2]
[326676821,1715215845104,-45009.6069027,0.00013,2]
[326676822,1715215845117,-999.84126648,0.00013,2]
[326676823,1715215845129,-252.43701998,0.00013,2]
[326676824,1715215845141,-4896.92,0.00013,2]
[326676825,1715215845152,-370409.697556,0.00013,2]
[326676826,1715215845164,-144736.51795361,0.00013,2]
[326676827,1715215845176,-1636.7040872,0.00013,2]
[326676828,1715215845463,-2022.6949102,0.00013,2]
[326676829,1715215845477,-729.82228752,0.00013,2]
[326676830,1715215845488,-2022.52795283,0.00013,2]
[326676831,1715215845499,-794.77275474,0.00013,2]
[326676832,1715215845510,-571.10976762,0.00013,2]
[326676833,1715215845521,-696.2,0.00013,2]
[326676834,1715215845532,-1103.89179112,0.00013,2]
[326676835,1715215845548,-853.79812441,0.00013,2]
[326676836,1715215845563,-858.60451901,0.00013,2]
[326676837,1715215845599,-922.8938064,0.00013,2]
[326676838,1715215845612,-659.94979241,0.00013,2]
[326676839,1715215845624,-6908.3,0.00013,2]
[326676840,1715215845636,-5299.5959166,0.00013,2]
[326676841,1715215845648,-28663.21010576,0.00013,2]
[326676842,1715215845659,-379.88735711,0.00013,2]
[326676843,1715215845671,-1325.81220542,0.00013,2]
[326676844,1715215845682,-2774.23906792,0.00013,2]
[326676845,1715215845694,-662.47809905,0.00013,2]
[326676846,1715215851790,-1305.5057,0.00010391,2]
[326676849,1715215851800,-21602.80499795,0.00013,2]
[326676853,1715215851812,-1883.65102,0.00013,2]
[326676857,1715215851824,-662.38136993,0.00013,2]
[326676862,1715215851836,-302.02885441,0.00013,2]
[326676866,1715215851848,-1838.75385252,0.00013,2]
[326676869,1715215851860,-35333.77735331,0.00013,2]
[326676871,1715215851871,-648221.3262245,0.00013,2]
[326676873,1715215851884,-646.38980015,0.00013,2]
[326676876,1715215851896,-1450512.60511804,0.00013,2]
[326676877,1715215851905,-188.70189088,0.00013,2]
[326676879,1715215851916,-4213.84844279,0.00015,2]
[326676880,1715215851925,-3335.9490597,0.00015482,2]
[326676882,1715215851935,-354.71717928,0.00015643,2]
[326676884,1715215851945,-930.74,0.00015664,2]
[326676886,1715215851954,-167.62297561,0.000169,2]
[326676887,1715215851964,-250.0,0.00017067,2]
[326676888,1715215851974,-14145.49538079,0.00017259,2]
[326676907,1715215852182,-930.74,0.00017622,2]
[326676909,1715215852194,-8038.18720829,0.0001788,2]
[326676911,1715215852214,-8038.1872082,0.0001788,2]
[326676913,1715215852230,-222.5,0.00017885,2]
[326676915,1715215852244,-3335.9490597,0.00018064,2]
[326676917,1715215852254,-8038.1872082,0.00018322,2]
[326676919,1715215852265,-354.71717928,0.00018386,2]
[326676921,1715215852275,-300.0,0.00018656,2]
[326676923,1715215852286,-7369.39,0.00018756,2]
[326676925,1715215852296,-7389.07,0.00018756,2]
[326676927,1715215852306,-442.21,0.00019152,2]
[326676929,1715215852316,-153.22,0.00019178,2]
[326676931,1715215852327,-3876.54489169,0.000192,2]
[326676932,1715215852337,-384.38,0.000192,2]
[326676934,1715215852347,-616.27,0.000192,2]
[326676936,1715215852357,-407.5,0.000192,2]
[326676937,1715215852366,-1997.08236472,0.0001945,2]
[326676938,1715215852376,-930.74,0.00019579,2]
[326676939,1715215852387,-150.83267111,0.000199,2]
[326676940,1715215852400,-150.83267083,0.000199,2]
[326676941,1715215852410,-150.83267083,0.000199,2]
[326676942,1715215852421,-150.83267083,0.000199,2]
[326676943,1715215852432,-150.83267083,0.000199,2]
[326676944,1715215852442,-150.83267083,0.000199,2]
[326676945,1715215852451,-150.83267083,0.000199,2]
[326676946,1715215852460,-150.83267083,0.000199,2]
[326676947,1715215852469,-150.83267083,0.000199,2]
[326676948,1715215852481,-150.83267083,0.000199,2]
[326676949,1715215852490,-150.83267083,0.000199,2]
[326676950,1715215852500,-150.83267083,0.000199,2]
[326676951,1715215852516,-150.83267083,0.000199,2]
[326676952,1715215852540,-150.83267083,0.000199,2]
[326676953,1715215852551,-150.83267083,0.000199,2]
[326676954,1715215852561,-150.83267083,0.000199,2]
[326676955,1715215852571,-150.83267083,0.000199,2]
[326676956,1715215852581,-150.83267083,0.000199,2]
[326676957,1715215852591,-53563.4492533,0.0002,2]
[326676958,1715215852600,-155.0,0.0002,2]
[326676959,1715215852611,-150.83267083,0.00020285,2]
[326676960,1715215852621,-48852.40068515,0.0002036,2]
[326676961,1715215852631,-1104.72513057,0.0002053,2]
[326676962,1715215852641,-3268.3661442,0.00020563,2]
[326676963,1715215852650,-155.0,0.00020563,2]
[326676964,1715215852660,-375.56815178,0.00020563,2]
[326676965,1715215852670,-227.47809229,0.00020563,2]
[326676966,1715215852680,-155.0,0.00020564,2]
[326676967,1715215852689,-3055.51863775,0.00020564,2]
[326676968,1715215852698,-136213.519,0.00020565,2]
[326676969,1715215852708,-84184.6455,0.00020565,2]
[326676970,1715215852718,-7529.48056012,0.00020565,2]
[326676971,1715215852728,-3000.0,0.00020565,2]
[326676972,1715215852738,-3335.9490597,0.00020645,2]
[326676973,1715215852747,-150.83267083,0.00020695,2]
[326676974,1715215852756,-156.5214017,0.00020981,2]
[326676975,1715215852766,-717.00080578,0.00021,2]
[326676976,1715215852775,-151.46200077,0.00021019,2]
[326676977,1715215852785,-8038.1872082,0.00021033,2]
[326676978,1715215852794,-152.68236171,0.00021065,2]
[326676979,1715215852804,-152.68236171,0.0002108,2]
[326676980,1715215852813,-150.83267083,0.00021105,2]
[326676981,1715215852823,-354.71717928,0.00021129,2]
[326676982,1715215852833,-152.58134113,0.00021286,2]
[326676983,1715215852842,-616.27,0.000215,2]
[326676984,1715215852852,-407.5,0.000215,2]
[326676985,1715215852861,-150.83267083,0.00021515,2]
[326676986,1715215852871,-231.03132453,0.00021518,2]
[326676987,1715215852881,-930.74,0.00021537,2]
[326676988,1715215852890,-231.03132453,0.0002156,2]
[326676989,1715215852900,-156.5214017,0.00021583,2]
[326676990,1715215852911,-152.19,0.00021589,15]
[326676991,1715215852920,-156.5214017,0.00021686,2]
[326676992,1715215852931,-3441.0,0.000217,3]
[326676993,1715215852940,-2200.0,0.000219,7]
[326676994,1715215852950,-6762.66945982,0.000219,2]
[326676995,1715215852959,-3276.82,0.00021917,2]
[326676996,1715215852969,-3276.82,0.00021917,2]
[326676997,1715215852978,-3276.82,0.00021917,2]
[326676998,1715215852988,-3276.82,0.00021917,2]
[326676999,1715215852998,-3276.82,0.00021917,2]
[326677000,1715215853008,-3276.82,0.00021917,2]
[326677001,1715215853018,-3276.82,0.00021917,2]
[326677002,1715215853027,-3276.82,0.00021917,2]
[326677003,1715215853036,-3276.82,0.00021917,2]
[326677004,1715215853046,-3276.82,0.00021917,2]
[326677005,1715215853055,-3276.82,0.00021917,2]
[326677006,1715215853064,-3276.82,0.00021917,2]
[326677007,1715215853073,-3276.82,0.00021917,2]
[326677008,1715215853083,-3276.82,0.00021917,2]
[326677009,1715215853092,-250.0,0.00021918,2]
[326677010,1715215853102,-150.59,0.00021918,2]
[326677011,1715215853112,-2000.0,0.00021918,2]
[326677012,1715215853121,-150.83267083,0.00021926,2]
[326677013,1715215853132,-1225.0,0.00021996,2]
[326677014,1715215853141,-1034.54377693,0.00021997,2]
[326677015,1715215853150,-5166.76162553,0.00021998,2]
[326677016,1715215853159,-5970.77051,0.00021998,2]
[326677017,1715215853169,-786.26824534,0.00022,2]
[326677018,1715215853177,-155.0,0.00022,2]
[326677019,1715215853185,-384.38,0.00022,2]
[326677020,1715215853193,-903.2815671,0.00022,2]
[326677021,1715215853200,-903.2815671,0.00022,2]
[326677022,1715215853207,-903.2815671,0.00022,2]
[326677023,1715215853215,-903.2815671,0.00022,2]
[326677024,1715215853225,-903.2815671,0.00022,2]
[326677025,1715215853234,-903.2815671,0.00022,2]
[326677026,1715215853244,-151.46200077,0.00022023,2]
[326677027,1715215853253,-231.03132453,0.00022108,2]
[326677028,1715215853263,-150.83267083,0.00022336,2]
[326677029,1715215853272,-231.03132453,0.00022533,2]
[326677030,1715215853282,-151.46200077,0.00022543,2]
[326677031,1715215853291,-152.68236171,0.00022586,2]
[326677032,1715215853300,-150.83267083,0.00022746,2]
[326677033,1715215853310,-151.46200077,0.00022778,2]
[326677034,1715215853320,-1000.0,0.00022903,2]
[326677035,1715215853330,-231.03132453,0.00023052,2]
[326677036,1715215853340,-150.83267083,0.00023156,2]
[326677037,1715215853356,-152.68236171,0.00023181,2]
[326677038,1715215853366,-3335.9490597,0.00023227,2]
[326677039,1715215853376,-151.46200077,0.00023249,2]
[326677040,1715215853386,-152.68236171,0.00023338,2]
[326677041,1715215853400,-2002.05142652,0.000234,2]
[326677042,1715215853409,-616.27,0.000234,2]
[326677043,1715215853420,-407.5,0.000234,2]
[326677044,1715215853430,-231.03132453,0.00023416,2]
[326677045,1715215853441,-930.74,0.00023495,2]
[326677046,1715215853451,-150.83267083,0.00023567,2]
[326677047,1715215853461,-231.03132453,0.00023604,2]
[326677048,1715215853473,-231.03132453,0.0002368,2]
[326677049,1715215853483,-151.46200077,0.00023687,2]
[326677050,1715215853494,-8038.1872082,0.00023744,2]
[326677051,1715215853504,-153.61283103,0.00023781,2]
[326677052,1715215853514,-354.71717928,0.00023871,2]
[326677053,1715215853524,-1149.0268638,0.00023973,2]
[326677054,1715215853534,-150.83267083,0.00023977,2]
[326677055,1715215853544,-1815.03021535,0.00023981,2]
[326677056,1715215853553,-432.43230672,0.00024,2]
[326677057,1715215853563,-802.78666126,0.00024,2]
[326677058,1715215853573,-19609.38018864,0.00024,2]
[326677059,1715215853582,-1655.4621311,0.00024,2]
[326677060,1715215853592,-1655.4621311,0.00024,2]
[326677061,1715215853602,-1655.4621311,0.00024,2]
[326677062,1715215853612,-1655.4621311,0.00024,2]
[326677063,1715215853621,-1655.4621311,0.00024,2]
[326677064,1715215853631,-1655.4621311,0.00024,2]
[326677065,1715215853640,-1655.4621311,0.00024,2]
[326677066,1715215853650,-1655.4621311,0.00024,2]
[326677067,1715215853660,-1655.4621311,0.00024,2]
[326677068,1715215853670,-1655.4621311,0.00024,2]
[326677069,1715215853680,-180.0,0.0002423,2]
[326677070,1715215853690,-231.03132453,0.00024345,2]
[326677071,1715215853699,-150.83267083,0.00024387,2]
[326677072,1715215853709,-2602.28168975,0.000245,2]
[326677073,1715215853719,-7940.0,0.00024658,2]
[326677074,1715215853728,-150.59,0.00024658,2]
[326677075,1715215853739,-384.38,0.000247,2]
[326677076,1715215853748,-155.14744708,0.00024785,2]
[326677077,1715215853758,-150.83267083,0.00024797,2]
[326677078,1715215853768,-231.03132453,0.00024808,2]
[326677079,1715215853778,-231.03132453,0.00024922,2]
[326677080,1715215853787,-223.340358,0.00024932,2]
[326677081,1715215853797,-200.0,0.0002499,7]
[326677082,1715215853806,-200.0,0.0002499,7]
[326677083,1715215853816,-471.76227117,0.00025,2]
[326677084,1715215853825,-573.77161037,0.00025,7]
[326677085,1715215853835,-155.0,0.00025,2]
[326677086,1715215853844,-171.94275642,0.00025,2]
[326677087,1715215853854,-12636.75901314,0.00025,2]
[326677088,1715215853863,-2218.57256714,0.00025,2]
[326677089,1715215853873,-444.95475943,0.00025,2]
[326677090,1715215853882,-1037.87625114,0.00025,2]
[326677091,1715215853892,-117468.97104495,0.00025,7]
[326677092,1715215853901,-37432.17503197,0.00025,2]
[326677093,1715215853912,-293.68275383,0.00025,2]
[326677094,1715215853923,-383114.17846188,0.00025,2]
[326677095,1715215853933,-2215.11343661,0.00025,2]
[326677096,1715215853942,-1042.23614951,0.00025,2]
[326677097,1715215853952,-2852.78995683,0.00025,2]
[326677098,1715215853961,-3276.82,0.00025128,2]
[326677099,1715215853972,-972.0,0.00025139,2]
[326677100,1715215853982,-1517.446,0.00025139,2]
[326677101,1715215853992,-1397.0,0.00025139,2]
[326677102,1715215854001,-540.0,0.00025139,2]
[326677103,1715215854013,-1226.0,0.00025139,2]
[326677104,1715215854022,-1260.0,0.00025139,2]
[326677105,1715215854032,-759.88122564,0.00025139,2]
[326677106,1715215854046,-337.46469261,0.00025139,2]
[326677107,1715215854058,-690.65408175,0.00025139,2]
[326677108,1715215854067,-81.42078833,0.00025139,2]
[326677109,1715215854084,-727.57921167,0.00025139,2]
[326677110,1715215854093,-377.05678963,0.00025139,2]
[326677111,1715215854105,-230.94321037,0.00025139,2]
[326677112,1715215854115,-164.0,0.00025139,2]
[326677113,1715215854125,-421.0,0.00025139,2]
[326677114,1715215854135,-438.0,0.00025139,2]
[326677115,1715215854145,-1478.0,0.00025139,2]
[326677116,1715215854154,-2369.7,0.00025139,2]
[326677117,1715215854163,-1138.0,0.00025139,2]
[326677118,1715215854173,-444.0,0.00025139,2]
[326677119,1715215854182,-1645.0,0.00025139,2]
[326677120,1715215854191,-215.0,0.00025139,2]
[326677121,1715215854201,-1483.778,0.00025139,2]
[326677122,1715215854211,-260.0,0.00025139,2]
[326677123,1715215854220,-8257.60972183,0.00025139,2]
[326677124,1715215854232,-14522.91221009,0.00025139,2]
[326677125,1715215854244,-815.814994,0.00025139,2]
[326677126,1715215854255,-6231.59735195,0.00025139,2]
[326677127,1715215854267,-55.16272213,0.00025139,2]
[326677128,1715215854276,-1802.944,0.00025139,2]
[326677129,1715215854287,-1058.0,0.00025139,2]
[326677130,1715215854296,-224.89621255,0.00025151,2]
[326677131,1715215854306,-150.83267083,0.00025208,2]
[326677132,1715215854316,-1000.0,0.00025264,2]
[326677133,1715215854325,-154.5536726,0.00025351,2]
[326677134,1715215854335,-228.42,0.00025379,2]
[326677135,1715215854345,-407.5,0.000254,2]
[326677136,1715215854355,-616.27,0.000255,2]
[326677137,1715215854365,-3000.0,0.00025565,2]
[326677138,1715215854376,-152.68236171,0.00025606,2]
[326677139,1715215854385,-150.83267083,0.00025618,2]
[326677140,1715215854398,-152.38680897,0.00025687,2]
[326677141,1715215854408,-223.340358,0.00025753,2]
[326677142,1715215854417,-156.5214017,0.00025773,2]
[326677143,1715215854426,-154.04026945,0.00025787,2]
[326677144,1715215854436,-3335.9490597,0.00025809,2]
[326677145,1715215854447,-7054.58912063,0.00026,2]
[326677146,1715215854456,-500.0,0.00026022,2]
[326677147,1715215854465,-500.0,0.00026022,2]
[326677148,1715215854476,-500.0,0.00026022,2]
[326677149,1715215854487,-500.0,0.00026022,2]
[326677150,1715215854498,-500.0,0.00026022,2]
[326677151,1715215854507,-500.0,0.00026022,2]
[326677152,1715215854517,-500.0,0.00026022,2]
[326677153,1715215854527,-500.0,0.00026022,2]
[326677154,1715215854538,-500.0,0.00026022,2]
[326677155,1715215854548,-500.0,0.00026022,2]
[326677156,1715215854558,-500.0,0.00026022,2]
[326677157,1715215854567,-179.7100645,0.00026022,2]
[326677158,1715215854578,-500.0,0.00026022,2]
[326677159,1715215854587,-150.83267083,0.00026028,2]
[326677160,1715215854596,-152.38680897,0.0002621,2]
[326677161,1715215854606,-152.38680897,0.00026287,2]
[326677162,1715215854615,-156.5214017,0.00026357,2]
[326677163,1715215854625,-150.83267083,0.00026438,2]
[326677164,1715215854634,-8038.1872082,0.00026456,2]
[326677165,1715215854644,-223.340358,0.00026575,2]
[326677166,1715215854654,-354.71717928,0.00026614,2]
[326677167,1715215854664,-231.03132453,0.00026617,2]
[326677168,1715215854673,-152.68236171,0.00026618,2]
[326677169,1715215854683,-1125.0,0.00026797,2]
[326677170,1715215854692,-1129.0,0.00026797,2]
[326677171,1715215854701,-154.5536726,0.00026812,2]
[326677172,1715215854711,-150.83267083,0.00026849,2]
[326677173,1715215854721,-153.21847456,0.00026899,2]
[326677174,1715215854731,-478.78423957,0.00027,2]
[326677175,1715215854740,-150.0,0.00027,2]
[326677176,1715215854750,-152.68236171,0.00027118,2]
[326677177,1715215854760,-152.38680897,0.00027214,2]
[326677178,1715215854769,-150.83267083,0.00027259,2]
[326677179,1715215854779,-10000.0,0.00027297,2]
[326677180,1715215854789,-1000.0,0.00027297,2]
[326677181,1715215854799,-808.0,0.000273,2]
[326677182,1715215854808,-231.03132453,0.00027375,2]
[326677183,1715215854817,-2100.0,0.00027384,2]
[326677184,1715215854827,-3276.82,0.00027396,2]
[326677185,1715215854836,-9820.42,0.00027397,2]
[326677186,1715215854846,-500.0,0.00027397,2]
[326677187,1715215854856,-500.0,0.00027397,2]
[326677188,1715215854865,-500.0,0.00027397,2]
[326677189,1715215854875,-500.0,0.00027397,2]
[326677190,1715215854885,-500.0,0.00027397,2]
[326677191,1715215854894,-500.0,0.00027397,2]
[326677192,1715215854904,-500.0,0.00027397,2]
[326677193,1715215854914,-500.0,0.00027397,2]
[326677194,1715215854926,-500.0,0.00027397,2]
[326677195,1715215854936,-500.0,0.00027397,2]
[326677196,1715215854946,-500.0,0.00027397,2]
[326677197,1715215854956,-500.0,0.00027397,2]
[326677198,1715215854965,-500.0,0.00027397,2]
[326677199,1715215854974,-1089.79,0.00027397,2]
[326677200,1715215854984,-500.0,0.00027397,2]
[326677201,1715215854993,-500.0,0.00027397,2]
[326677202,1715215855003,-500.0,0.00027397,2]
[326677203,1715215855014,-500.0,0.00027397,2]
[326677204,1715215855023,-247.66862018,0.00027397,2]
[326677205,1715215855033,-500.0,0.00027397,2]
[326677206,1715215855042,-500.0,0.00027397,2]
[326677207,1715215855051,-500.0,0.00027397,2]
[326677208,1715215855060,-585.36,0.00027397,2]
[326677209,1715215855070,-500.0,0.00027397,2]
[326677210,1715215855079,-500.0,0.00027397,2]
[326677211,1715215855091,-500.0,0.00027397,2]
[326677212,1715215855100,-618.44,0.00027397,2]
[326677213,1715215855111,-657.16,0.00027397,2]
[326677214,1715215855120,-500.0,0.00027397,2]
[326677215,1715215855131,-828.68,0.00027397,2]
[326677216,1715215855140,-500.0,0.00027397,2]
[326677217,1715215855149,-500.0,0.00027397,2]
[326677218,1715215855159,-500.0,0.00027397,2]
[326677219,1715215855168,-500.0,0.00027397,2]
[326677220,1715215855177,-500.0,0.00027397,2]
[326677221,1715215855187,-741.52,0.00027397,2]
[326677222,1715215855197,-1054.87,0.00027397,2]
[326677223,1715215855206,-500.0,0.00027397,2]
[326677224,1715215855215,-500.0,0.00027397,2]
[326677225,1715215855230,-500.0,0.00027397,2]
[326677226,1715215855240,-500.0,0.00027397,2]
[326677227,1715215855250,-785.63,0.00027397,2]
[326677228,1715215855259,-500.0,0.00027397,2]
[326677229,1715215855269,-163.91,0.00027397,2]
[326677230,1715215855279,-570.29,0.00027397,2]
[326677231,1715215855288,-500.0,0.00027397,2]
[326677232,1715215855297,-500.0,0.00027397,2]
[326677233,1715215855307,-569.12,0.00027397,2]
[326677234,1715215855317,-500.0,0.00027397,2]
[326677235,1715215855326,-500.0,0.00027397,2]
[326677236,1715215855336,-500.0,0.00027397,2]
[326677237,1715215855347,-500.0,0.00027397,2]
[326677238,1715215855356,-583.93,0.00027397,2]
[326677239,1715215855365,-500.0,0.00027397,2]
[326677240,1715215855375,-500.0,0.00027397,2]
[326677241,1715215855384,-500.0,0.00027397,2]
[326677242,1715215855397,-500.0,0.00027397,2]
[326677243,1715215855407,-500.0,0.00027397,2]
[326677244,1715215855416,-500.0,0.00027397,2]
[326677245,1715215855426,-500.0,0.00027397,2]
[326677246,1715215855438,-500.0,0.00027397,2]
[326677247,1715215855447,-1102.48,0.00027397,2]
[326677248,1715215855457,-500.0,0.00027397,2]
[326677249,1715215855466,-500.0,0.00027397,2]
[326677250,1715215855478,-500.0,0.00027397,2]
[326677251,1715215855487,-531.3,0.00027397,2]
[326677252,1715215855496,-500.0,0.00027397,2]
[326677253,1715215855506,-500.0,0.00027397,2]
[326677254,1715215855516,-500.0,0.00027397,2]
[326677255,1715215855526,-500.0,0.00027397,2]
[326677256,1715215855535,-500.0,0.00027397,2]
[326677257,1715215855544,-500.0,0.00027397,2]
[326677258,1715215855554,-1276.74,0.00027397,2]
[326677259,1715215855564,-500.0,0.00027397,2]
[326677260,1715215855575,-500.0,0.00027397,2]
[326677261,1715215855584,-500.0,0.00027397,2]
[326677262,1715215855594,-500.0,0.00027397,2]
[326677263,1715215855603,-500.0,0.00027397,2]
[326677264,1715215855612,-500.0,0.00027397,2]
[326677265,1715215855622,-500.0,0.00027397,2]
[326677266,1715215855634,-500.0,0.00027397,2]
[326677267,1715215855644,-706.33,0.00027397,2]
[326677268,1715215855654,-500.0,0.00027397,2]
[326677269,1715215855663,-500.0,0.00027397,2]
[326677270,1715215855673,-500.0,0.00027397,2]
[326677271,1715215855683,-507.41795576,0.00027397,2]
[326677272,1715215855693,-500.0,0.00027397,2]